bitfinex/quotes_SOLUSD_20220129
["timestamp","ask_amount","ask_price","bid_price","bid_amount"]
[1643478345093,6.0,94.452,94.405,0.25]
[1643478345397,0.25,94.451,94.405,0.25]
[1643478345795,0.25,94.461,94.394,0.25]
[1643478346216,0.25,94.461,94.394,0.35]
[1643478346620,0.25,94.461,94.394,0.1]
[1643478346818,0.25,94.461,94.389,6.0]
[1643478347519,31.64546896,94.462,94.39,42.70803778]
[1643478347720,31.64546896,94.462,94.391,0.1]
[1643478347924,31.64546896,94.462,94.4,6.0]
[1643478348321,31.64546896,94.462,94.401,0.25]
[1643478348522,31.64546896,94.462,94.4,6.0]
[1643478348922,0.25,94.461,94.389,6.0]
[1643478349523,0.25,94.461,94.39,41.91084086]
[1643478349725,0.25,94.461,94.391,0.1]
[1643478349923,0.25,94.461,94.4,6.0]
[1643478350322,0.25,94.461,94.401,0.25]
[1643478350525,31.64546896,94.462,94.4,6.0]
[1643478350726,0.25,94.461,94.401,0.25]
[1643478351126,0.25,94.461,94.401,6.25]
[1643478352126,0.25,94.461,94.401,6.0]
[1643478352524,0.25,94.461,94.39,41.91084086]
[1643478352525,6.0,94.452,94.4,6.0]
[1643478352925,0.25,94.451,94.4,6.0]
[1643478354026,6.0,94.452,94.4,6.0]
[1643478354226,0.25,94.451,94.4,6.0]
[1643478357634,31.64546896,94.462,94.401,0.25]
[1643478357834,0.25,94.461,94.401,0.25]
[1643478358033,0.25,94.461,94.401,6.25]
[1643478358238,0.25,94.461,94.401,6.35]
[1643478358435,0.25,94.461,94.401,6.25]
[1643478358635,31.64546896,94.462,94.404,6.0]
[1643478358838,31.64546896,94.462,94.405,0.25]
[1643478360140,31.64546896,94.462,94.405,6.25]
[1643478360341,24.3024,94.499,94.405,6.35]
[1643478360541,24.3024,94.499,94.406,105.8]
[1643478360745,24.3024,94.499,94.407,24.6091]
[1643478361042,6.0,94.489,94.417,6.0]
[1643478361245,6.0,94.489,94.418,0.25]
[1643478361442,45.97324777,94.488,94.418,0.25]
[1643478363245,22.7746,94.487,94.418,0.25]
[1643478364644,0.25,94.487,94.418,0.25]
[1643478365077,0.25,94.487,94.418,30.4175]
[1643478365277,0.25,94.487,94.419,4.74329943]
[1643478365677,0.25,94.487,94.429,6.0]
[1643478365880,0.25,94.487,94.43,0.25]
[1643478366879,0.25,94.487,94.429,6.0]
[1643478367184,0.25,94.487,94.42,0.1]
[1643478367380,24.8788,94.487,94.419,4.49329943]
[1643478367679,24.8788,94.487,94.429,6.0]
[1643478368080,6.0,94.477,94.429,6.0]
[1643478368281,0.25,94.476,94.398,6.0]
[1643478368484,0.25,94.476,94.375,0.1]
[1643478368485,23.9363,94.476,94.394,6.0]
[1643478368682,23.9363,94.476,94.393,6.0]
[1643478368883,6.0,94.466,94.394,33.4824287]
[1643478369083,23.9363,94.476,94.404,6.0]
[1643478369685,6.0,94.466,94.404,6.0]
[1643478369883,24.1903,94.465,94.404,6.0]
[1643478370885,6.0,94.455,94.404,6.0]
[1643478371087,19.92261194,94.454,94.404,6.0]
[1643478371284,20.17261194,94.454,94.405,0.25]
[1643478371487,6.0,94.444,94.384,22.768]
[1643478371784,0.25,94.443,94.385,0.1]
[1643478371985,0.25,94.443,94.394,6.0]
[1643478372585,0.25,94.443,94.374,0.1]
[1643478372784,23.4812,94.443,94.374,0.1]
[1643478373388,6.0,94.433,94.374,0.1]
[1643478373588,23.4812,94.443,94.374,0.35]
[1643478373985,23.4812,94.443,94.383,6.0]
[1643478374386,23.4812,94.443,94.384,0.25]
[1643478374786,23.4812,94.443,94.374,0.1]
[1643478374987,23.4812,94.443,94.31,16.35673854]
[1643478374988,6.0,94.433,94.367,0.1]
[1643478375289,23.371,94.432,94.367,0.25]
[1643478375886,40.59272725,94.421,94.367,0.25]
[1643478376088,40.59272725,94.421,94.366,0.55036264]
[1643478376089,23.121,94.42,94.363,112.30036264]
[1643478376288,23.371,94.42,94.364,0.25]
[1643478376486,23.371,94.42,94.357,22.5719]
[1643478376788,23.371,94.42,94.346,112.9]
[1643478376988,6.0,94.41,94.346,112.9]
[1643478377187,24.2617,94.409,94.346,112.9]
[1643478377390,24.2617,94.409,94.313,24.7559]
[1643478377391,24.5117,94.409,94.317,2.93343954]
[1643478377586,6.0,94.399,94.314,2.27000446]
[1643478377788,24.5117,94.398,94.313,24.7559]
[1643478377989,6.0,94.388,94.313,24.7559]
[1643478378187,6.0,94.388,94.31,0.10903854]
[1643478378188,25.30313246,94.387,94.31,0.10903854]
[1643478378389,48.37583246,94.387,94.31,0.10903854]
[1643478378591,6.0,94.377,94.31,0.10903854]
[1643478378788,0.25,94.376,94.31,0.10903854]
[1643478378988,15.14,94.37,94.31,0.10903854]
[1643478379388,6.0,94.36,94.31,0.10903854]
[1643478379789,0.25,94.359,94.31,0.10903854]
[1643478379988,6.25,94.359,94.31,0.10903854]
[1643478380189,32.94195961,94.358,94.31,0.10903854]
[1643478380392,0.25,94.357,94.31,0.10903854]
[1643478380591,6.0,94.348,94.31,0.10903854]
[1643478380791,0.25,94.347,94.31,0.10903854]
[1643478380993,6.25,94.347,94.31,0.10903854]
[1643478383895,6.0,94.34,94.31,0.10903854]
[1643478384095,0.25,94.339,94.31,0.10903854]
[1643478386300,23.463,94.357,94.31,0.10903854]
[1643478386503,53.024,94.42,94.31,0.10903854]
[1643478386504,242.254,94.42,94.31,0.10903854]
[1643478386699,15.14,94.41,94.31,0.10903854]
[1643478386899,15.14,94.41,94.315,6.0]
[1643478387100,15.14,94.41,94.316,6.04190438]
[1643478387300,15.14,94.41,94.317,0.25]
[1643478388000,42.48407585,94.409,94.317,0.25]
[1643478388200,42.23407585,94.409,94.317,0.25]
[1643478388399,42.23407585,94.409,94.318,2.28031776]
[1643478388600,31.038,94.46,94.328,6.0]
[1643478388807,23.4523,94.459,94.33,15.14]
[1643478389001,23.4523,94.459,94.34,6.0]
[1643478389501,37.46405979,94.458,94.342,44.81051627]
[1643478389900,37.46405979,94.458,94.352,6.0]
[1643478389901,6.0,94.448,94.352,6.0]
[1643478390302,6.0,94.448,94.353,0.25]
[1643478391106,6.0,94.448,94.352,6.0]
[1643478391332,0.25,94.447,94.352,6.0]
[1643478391533,6.0,94.44,94.352,6.0]
[1643478391828,0.25,94.439,94.352,6.0]
[1643478392537,0.25,94.439,94.353,0.25]
[1643478393128,0.25,94.449,94.353,0.25]
[1643478393328,6.0,94.44,94.353,0.25]
[1643478393528,21.14,94.44,94.353,0.25]
[1643478393729,0.25,94.439,94.353,0.25]
[1643478393934,6.0,94.438,94.353,0.25]
[1643478394133,28.43179992,94.429,94.353,0.25]
[1643478394535,28.43179992,94.429,94.353,106.05]
[1643478394830,15.14,94.46,94.353,0.25]
[1643478395032,6.0,94.439,94.353,0.25]
[1643478395637,50.95352508,94.438,94.353,0.25]
[1643478396030,44.95352508,94.438,94.353,0.25]
[1643478397434,44.95352508,94.438,94.356,6.0]
[1643478397732,44.95352508,94.438,94.353,0.25]
[1643478397933,44.95352508,94.438,94.357,0.25]
[1643478398134,44.95352508,94.438,94.353,0.25]
[1643478398335,0.25,94.437,94.353,0.25]
[1643478398534,0.25,94.437,94.355,6.0]
[1643478398734,0.25,94.437,94.353,0.25]
[1643478398934,0.25,94.437,94.363,6.0]
[1643478399334,0.25,94.437,94.364,0.25]
[1643478400336,0.25,94.437,94.357,0.25]
[1643478400937,0.25,94.437,94.354,6.0]
[1643478401137,0.25,94.437,94.355,6.25]
[1643478401436,44.95352508,94.438,94.356,0.25]
[1643478401639,44.95352508,94.438,94.356,6.25]
[1643478401839,44.95352508,94.438,94.356,2.53840573]
[1643478402038,44.95352508,94.438,94.357,1.45757851]
[1643478402238,44.95352508,94.438,94.351,1.45757851]
[1643478402438,6.0,94.428,94.325,2.93343954]
[1643478402640,15.14,94.42,94.327,1.46401869]
[1643478402939,0.25,94.419,94.315,1.46401869]
[1643478403140,19.48475613,94.409,94.315,1.46401869]
[1643478403339,15.14,94.4,94.315,1.46401869]
[1643478403539,6.0,94.39,94.3,1.46401869]
[1643478403940,0.25,94.389,94.297,1.46401869]
[1643478404145,0.25,94.389,94.307,6.0]
[1643478404441,33.73330494,94.389,94.308,0.25]
[1643478404640,33.73330494,94.389,94.297,0.25]
[1643478404641,6.0,94.379,94.306,6.0]
[1643478404841,0.25,94.378,94.306,6.0]
[1643478405251,0.25,94.378,94.307,0.25]
[1643478405641,0.25,94.378,94.308,6.0]
[1643478405844,0.25,94.378,94.309,0.25]
[1643478406042,0.25,94.378,94.31,6.10903854]
[1643478406240,0.25,94.378,94.311,0.25]
[1643478407145,0.25,94.378,94.311,6.25]
[1643478407644,0.25,94.378,94.32,6.0]
[1643478407846,0.25,94.378,94.311,6.25]
[1643478408243,0.25,94.378,94.311,0.25]
[1643478408643,0.25,94.378,94.31,0.10903854]
[1643478409445,0.25,94.378,94.31,6.10903854]
[1643478409645,0.25,94.378,94.311,6.0]
[1643478409846,0.25,94.378,94.32,6.0]
[1643478410452,0.25,94.378,94.31,0.10903854]
[1643478411352,0.25,94.378,94.313,3.87286869]
[1643478411553,0.25,94.378,94.323,6.0]
[1643478411755,0.25,94.378,94.312,6.0]
[1643478412152,0.25,94.378,94.313,0.25]
[1643478412353,0.25,94.378,94.313,6.25]
[1643478412557,0.25,94.378,94.323,6.0]
[1643478412763,0.25,94.378,94.318,11.64954308]
[1643478413557,0.25,94.378,94.313,6.25]
[1643478413957,0.25,94.378,94.313,6.0]
[1643478414361,0.25,94.378,94.31,0.10903854]
[1643478414558,0.25,94.378,94.31,6.10903854]
[1643478414758,0.25,94.378,94.31,0.10903854]
[1643478415158,0.25,94.378,94.311,6.0]
[1643478416963,0.25,94.378,94.312,6.0]
[1643478417782,0.25,94.378,94.311,6.0]
[1643478418883,6.0,94.379,94.311,6.0]
[1643478419084,6.0,94.379,94.312,0.25]
[1643478419486,6.0,94.379,94.313,6.0]
[1643478419684,6.0,94.379,94.32,6.0]
[1643478419886,33.48330494,94.389,94.323,6.0]
[1643478420086,33.48330494,94.389,94.331,6.0]
[1643478420293,33.48330494,94.389,94.332,0.25]
[1643478420488,33.48330494,94.389,94.331,6.0]
[1643478420889,33.48330494,94.389,94.332,0.25]
[1643478421992,0.25,94.388,94.332,0.25]
[1643478424095,0.25,94.388,94.333,6.0]
[1643478424296,0.25,94.388,94.334,0.25]
[1643478424497,0.25,94.388,94.332,6.25]
[1643478424692,0.25,94.419,94.333,6.0]
[1643478424895,0.25,94.419,94.342,6.0]
[1643478425099,6.0,94.41,94.342,6.0]
[1643478425301,44.63145861,94.409,94.343,36.70641953]
[1643478425504,6.0,94.399,94.353,6.0]
[1643478425699,6.0,94.399,94.343,36.70641953]
[1643478425900,0.25,94.398,94.343,36.70641953]
[1643478427106,0.25,94.398,94.343,36.45641953]
[1643478427301,0.25,94.398,94.325,1.46401869]
[1643478427506,29.8271,94.398,94.335,6.0]
[1643478427703,29.8271,94.398,94.318,1.46401869]
[1643478427905,6.0,94.39,94.334,6.0]
[1643478428103,6.0,94.388,94.327,6.0]
[1643478428306,20.3068226,94.387,94.328,43.38036617]
[1643478429904,20.3068226,94.387,94.338,6.0]
[1643478432104,20.3068226,94.387,94.343,4.38135262]
[1643478433212,20.3068226,94.387,94.342,6.0]
[1643478433411,20.3068226,94.387,94.343,6.0]
[1643478433613,20.3068226,94.387,94.333,1.46401869]
[1643478433812,20.3068226,94.387,94.334,1.46401869]
[1643478434012,20.3068226,94.387,94.333,1.46401869]
[1643478434214,20.3068226,94.387,94.334,38.86267545]
[1643478434416,20.3068226,94.387,94.343,6.0]
[1643478434615,20.3068226,94.387,94.335,1.46401869]
[1643478434817,20.3068226,94.387,94.336,1.46401869]
[1643478435021,20.3068226,94.387,94.334,39.11267545]
[1643478435022,20.0568226,94.387,94.334,40.57669414]
[1643478435923,20.0568226,94.387,94.334,1.71401869]
[1643478436123,0.25,94.386,94.334,1.46401869]
[1643478436347,6.0,94.377,94.333,1.46401869]
[1643478436546,6.0,94.377,94.326,1.46401869]
[1643478436843,0.25,94.376,94.321,1.46401869]
[1643478437045,6.25,94.376,94.32,1.46401869]
[1643478437246,6.25,94.376,94.319,1.46401869]
[1643478437448,6.25,94.376,94.322,1.46401869]
[1643478437649,6.25,94.376,94.32,1.46401869]
[1643478437846,6.0,94.37,94.32,1.46401869]
[1643478438246,0.25,94.369,94.321,1.46401869]
[1643478438446,0.25,94.369,94.323,1.46401869]
[1643478438646,0.25,94.369,94.322,1.46401869]
[1643478439247,0.25,94.379,94.32,1.46401869]
[1643478439447,0.25,94.379,94.322,1.46401869]
[1643478439648,15.14,94.38,94.322,1.46401869]
[1643478439852,15.14,94.38,94.321,1.46401869]
[1643478440648,15.14,94.38,94.322,1.46401869]
[1643478440854,0.25,94.379,94.322,1.46401869]
[1643478441051,6.0,94.37,94.322,1.46401869]
[1643478441352,0.25,94.369,94.321,1.46401869]
[1643478441749,42.55979708,94.369,94.321,1.46401869]
[1643478441951,42.55979708,94.369,94.322,1.46401869]
[1643478442553,42.55979708,94.369,94.321,1.46401869]
[1643478442950,42.55979708,94.369,94.322,1.46401869]
[1643478444253,42.55979708,94.369,94.323,1.46401869]
[1643478446654,42.55979708,94.369,94.325,1.46401869]
[1643478446853,42.55979708,94.369,94.329,6.0]
[1643478447054,42.55979708,94.369,94.336,6.0]
[1643478447760,42.55979708,94.369,94.329,6.0]
[1643478447955,42.55979708,94.369,94.333,6.0]
[1643478448156,42.55979708,94.369,94.32,1.46401869]
[1643478448355,42.55979708,94.369,94.331,6.0]
[1643478449054,42.55979708,94.369,94.322,1.46401869]
[1643478449055,42.55979708,94.369,94.324,1.46401869]
[1643478449455,42.55979708,94.369,94.334,6.0]
[1643478450156,42.55979708,94.369,94.335,6.0]
[1643478451960,42.55979708,94.369,94.316,1.50592307]
[1643478451961,42.55979708,94.369,94.318,1.46401869]
[1643478452158,24.9523,94.368,94.326,6.0]
[1643478452357,0.25,94.367,94.328,6.0]
[1643478453060,0.25,94.367,94.326,6.0]
[1643478453259,0.25,94.367,94.325,6.0]
[1643478453558,0.25,94.367,94.324,6.0]
[1643478453959,0.25,94.367,94.323,6.0]
[1643478454158,0.25,94.367,94.323,7.46401869]
[1643478454358,0.25,94.368,94.323,6.0]
[1643478454560,0.25,94.368,94.33,6.0]
[1643478455159,0.25,94.368,94.331,6.0]
[1643478455362,0.25,94.368,94.33,6.0]
[1643478455560,0.25,94.368,94.33,15.26638377]
[1643478455761,0.25,94.368,94.33,6.0]
[1643478456162,0.25,94.368,94.329,6.0]
[1643478456561,0.25,94.368,94.332,6.0]
[1643478457163,0.25,94.368,94.341,6.0]
[1643478457362,0.25,94.383,94.341,6.0]
[1643478458163,41.18732008,94.383,94.341,6.0]
[1643478458564,15.901,94.43,94.341,6.0]
[1643478458763,0.25,94.423,94.342,24.9566]
[1643478458963,0.25,94.423,94.349,1.46401869]
[1643478459162,0.25,94.423,94.342,24.9566]
[1643478459163,0.25,94.423,94.353,1.46401869]
[1643478459364,0.25,94.423,94.355,1.46401869]
[1643478459565,0.25,94.423,94.365,6.0]
[1643478459766,0.25,94.423,94.356,13.31553063]
[1643478459965,6.0,94.417,94.366,6.0]
[1643478460366,0.25,94.416,94.366,6.0]
[1643478461366,0.25,94.425,94.366,6.0]
[1643478462565,6.0,94.416,94.366,6.0]
[1643478462767,0.25,94.415,94.366,6.0]
[1643478468070,0.25,94.415,94.367,0.25]
[1643478468272,1.43897975,94.459,94.367,0.25]
[1643478468273,15.14,94.45,94.367,0.25]
[1643478468472,15.14,94.45,94.366,6.0]
[1643478468671,15.14,94.45,94.367,6.25]
[1643478469072,44.25991742,94.449,94.372,6.0]
[1643478469273,44.25991742,94.449,94.373,0.25]
[1643478469470,44.25991742,94.449,94.381,6.0]
[1643478469871,44.25991742,94.449,94.382,0.25]
[1643478470101,44.25991742,94.449,94.383,6.0]
[1643478470296,0.25,94.448,94.384,0.25]
[1643478470498,0.25,94.448,94.384,6.25]
[1643478472297,44.25991742,94.449,94.384,6.25]
[1643478472698,44.25991742,94.449,94.384,6.0]
[1643478473701,0.25,94.448,94.384,6.0]
[1643478474302,0.25,94.448,94.385,0.25]
[1643478476204,0.25,94.448,94.384,6.0]
[1643478476804,0.25,94.448,94.385,0.25]
[1643478478608,0.25,94.448,94.384,6.0]
[1643478478804,0.25,94.448,94.385,0.25]
[1643478479006,0.25,94.448,94.384,6.0]
[1643478479204,0.25,94.448,94.385,0.25]
[1643478481010,0.25,94.448,94.384,6.0]
[1643478481407,0.25,94.448,94.385,0.25]
[1643478482308,0.25,94.448,94.384,6.0]
[1643478482510,0.25,94.448,94.381,6.0]
[1643478482909,24.2593,94.448,94.381,6.0]
[1643478484110,24.2593,94.448,94.382,0.25]
[1643478485514,24.2593,94.448,94.382,6.25]
[1643478486617,6.0,94.438,94.382,6.25]
[1643478486816,0.25,94.437,94.382,0.25]
[1643478487218,0.25,94.437,94.372,6.0]
[1643478487418,22.8967,94.437,94.373,0.25]
[1643478490923,22.8967,94.437,94.372,6.0]
[1643478491222,6.0,94.427,94.362,6.0]
[1643478491427,24.1321,94.426,94.362,6.0]
[1643478491623,6.0,94.416,94.351,6.0]
[1643478491822,20.42836379,94.415,94.351,6.0]
[1643478492021,6.0,94.405,94.351,6.0]
[1643478492221,6.0,94.405,94.352,0.25]
[1643478492422,0.25,94.404,94.352,0.25]
[1643478492621,6.25,94.404,94.352,0.25]
[1643478493522,6.25,94.404,94.329,1.46401869]
[1643478493721,22.6771,94.403,94.32,1.46401869]
[1643478493923,22.6771,94.403,94.325,6.0]
[1643478494126,6.0,94.393,94.33,6.0]
[1643478494323,24.7482,94.392,94.33,6.0]
[1643478494522,15.14,94.38,94.321,6.0]
[1643478494722,39.66492739,94.379,94.321,6.0]
[1643478494923,6.0,94.37,94.321,6.0]
[1643478495126,6.0,94.369,94.321,6.0]
[1643478495325,6.25,94.369,94.321,6.0]
[1643478495526,6.0,94.368,94.321,6.0]
[1643478495929,0.25,94.367,94.316,0.04190438]
[1643478496329,22.8338,94.367,94.316,0.04190438]
[1643478496930,0.25,94.367,94.316,0.04190438]
[1643478497328,0.25,94.377,94.316,0.04190438]
[1643478497528,0.25,94.377,94.322,6.0]
[1643478502733,24.4679,94.378,94.322,6.0]
[1643478502935,39.66492739,94.379,94.323,0.25]
[1643478503236,39.66492739,94.379,94.322,6.0]
[1643478503237,39.66492739,94.379,94.322,8.2890254]
[1643478503536,39.66492739,94.379,94.322,6.0]
[1643478503834,39.66492739,94.379,94.323,0.25]
[1643478504233,39.66492739,94.379,94.322,6.0]
[1643478505436,0.25,94.378,94.322,6.0]
[1643478506238,0.25,94.378,94.323,0.25]
[1643478506439,0.25,94.378,94.322,6.0]
[1643478510342,0.25,94.378,94.323,0.25]
[1643478510545,0.25,94.378,94.322,6.0]
[1643478511763,0.25,94.378,94.323,0.25]
[1643478512367,0.25,94.378,94.322,6.0]
[1643478514666,0.25,94.378,94.323,0.25]
[1643478515466,0.25,94.378,94.322,6.0]
[1643478519768,39.66492739,94.379,94.322,6.0]
[1643478520170,39.66492739,94.379,94.323,6.0]
[1643478520369,39.66492739,94.379,94.322,6.0]
[1643478520568,39.66492739,94.379,94.324,6.0]
[1643478521169,0.25,94.378,94.324,6.0]
[1643478521669,0.25,94.378,94.322,6.0]
[1643478521871,0.25,94.378,94.325,6.0]
[1643478522069,0.25,94.378,94.326,6.0]
[1643478522871,0.25,94.378,94.33,6.0]
[1643478523074,0.25,94.378,94.337,6.0]
[1643478523670,1.43897975,94.408,94.338,0.25]
[1643478523871,0.25,94.501,94.339,1.46401869]
[1643478523872,1.43897975,94.427,94.339,1.46401869]
[1643478524171,0.25,94.426,94.353,1.46401869]
[1643478524371,23.264,94.439,94.354,0.25]
[1643478524572,6.0,94.429,94.363,6.0]
[1643478524770,6.0,94.429,94.364,0.25]
[1643478524973,6.0,94.428,94.363,6.0]
[1643478525172,6.0,94.428,94.364,6.0]
[1643478525473,24.1431,94.427,94.364,6.25]
[1643478525870,24.1431,94.427,94.364,6.0]
[1643478526072,0.25,94.426,94.364,6.0]
[1643478526674,0.25,94.426,94.365,0.25]
[1643478527875,44.84858324,94.438,94.365,0.25]
[1643478528478,44.84858324,94.438,94.365,6.25]
[1643478530279,0.25,94.437,94.365,6.25]
[1643478532079,0.25,94.437,94.365,6.0]
[1643478532281,0.25,94.437,94.366,0.25]
[1643478534186,6.0,94.428,94.365,6.0]
[1643478534385,23.0227,94.427,94.366,0.25]
[1643478534586,6.0,94.417,94.355,24.0801]
[1643478534888,19.83969797,94.416,94.356,0.25]
[1643478535086,6.0,94.406,94.355,24.0801]
[1643478535288,0.25,94.405,94.354,9.34251588]
[1643478536287,0.25,94.405,94.355,0.25]
[1643478536488,0.25,94.414,94.355,0.25]
[1643478537518,0.25,94.414,94.339,6.0]
[1643478537892,0.25,94.414,94.34,0.25]
[1643478538493,0.25,94.414,94.34,43.4141725]
[1643478538888,0.25,94.414,94.35,6.0]
[1643478539292,0.25,94.414,94.351,0.25]
[1643478539492,6.0,94.405,94.351,6.25]
[1643478539692,0.25,94.414,94.351,6.25]
[1643478539893,6.0,94.405,94.351,6.25]
[1643478540091,0.25,94.414,94.351,6.25]
[1643478540692,6.0,94.405,94.351,6.25]
[1643478540895,0.25,94.414,94.351,6.25]
[1643478540896,0.25,94.404,94.351,6.25]
[1643478541796,0.25,94.414,94.351,6.25]
[1643478545021,6.0,94.405,94.351,6.25]
[1643478545426,0.25,94.404,94.351,6.25]
[1643478547126,0.25,94.414,94.351,6.25]
[1643478549430,24.8911,94.415,94.351,6.25]
[1643478550932,0.25,94.414,94.351,6.25]
[1643478551530,24.8911,94.415,94.351,6.25]
[1643478551731,19.58969797,94.416,94.352,2.2890254]
[1643478551930,0.25,94.414,94.352,2.2890254]
[1643478552131,0.25,94.414,94.353,0.25]
[1643478552329,0.25,94.414,94.351,0.25]
[1643478552529,0.25,94.414,94.351,6.25]
[1643478555536,0.25,94.415,94.351,6.25]
[1643478556538,24.8078,94.415,94.351,6.25]
[1643478559641,19.58969797,94.416,94.352,2.2890254]
[1643478559841,0.25,94.414,94.353,0.25]
[1643478560043,0.25,94.414,94.362,6.0]
[1643478560243,0.25,94.414,94.363,0.25]
[1643478560648,0.25,94.414,94.359,6.0]
[1643478560847,23.162,94.415,94.36,6.0]
[1643478561451,23.162,94.415,94.357,6.0]
[1643478561847,23.162,94.415,94.351,6.0]
[1643478562048,22.912,94.415,94.359,6.0]
[1643478562248,19.58969797,94.416,94.36,0.25]
[1643478562448,19.58969797,94.416,94.359,6.0]
[1643478562651,19.58969797,94.416,94.361,6.0]
[1643478562850,19.58969797,94.416,94.362,0.25]
[1643478563050,19.58969797,94.416,94.364,6.0]
[1643478563249,19.58969797,94.416,94.365,0.25]
[1643478563452,19.58969797,94.416,94.364,6.0]
[1643478563652,19.58969797,94.416,94.363,6.0]
[1643478563849,19.58969797,94.416,94.364,6.0]
[1643478564051,19.58969797,94.416,94.366,6.0]
[1643478564651,15.901,94.44,94.367,2.2890254]
[1643478564853,0.25,94.439,94.368,0.25]
[1643478565054,6.0,94.43,94.377,6.0]
[1643478565254,0.25,94.429,94.378,0.25]
[1643478565455,0.25,94.429,94.377,6.0]
[1643478565655,38.34339608,94.429,94.379,6.0]
[1643478566054,38.34339608,94.429,94.388,6.0]
[1643478566554,6.0,94.43,94.388,6.0]
[1643478566555,22.5207,94.447,94.389,0.25]
[1643478566754,1.43897975,94.462,94.389,0.25]
[1643478566954,1.43897975,94.47,94.389,11.54]
[1643478567158,1.43897975,94.478,94.39,2.2890254]
[1643478567354,70.0172,94.529,94.399,6.0]
[1643478567355,1.43897975,94.485,94.399,6.0]
[1643478567654,40.82155074,94.484,94.401,6.0]
[1643478567855,40.82155074,94.484,94.402,24.1518]
[1643478568055,40.82155074,94.484,94.41,6.0]
[1643478568254,40.82155074,94.484,94.413,43.1641725]
[1643478568656,0.25,94.483,94.423,6.0]
[1643478568858,1.43897975,94.491,94.424,0.25]
[1643478569058,1.43897975,94.505,94.424,18.6690254]
[1643478569255,1.43897975,94.512,94.424,18.6690254]
[1643478569454,1.43897975,94.517,94.425,2.2890254]
[1643478569656,36.90327434,94.516,94.425,6.0]
[1643478569855,36.90327434,94.516,94.426,0.25]
[1643478570060,6.0,94.506,94.434,6.0]
[1643478570261,0.25,94.505,94.435,0.25]
[1643478570459,24.9016,94.505,94.435,0.25]
[1643478571062,6.0,94.495,94.435,6.25]
[1643478571283,0.25,94.494,94.435,6.25]
[1643478571685,24.9531,94.494,94.435,6.25]
[1643478572489,24.9531,94.494,94.435,6.0]
[1643478572687,24.9531,94.494,94.434,6.0]
[1643478573887,1.43897975,94.528,94.425,23.0797]
[1643478573888,1.43897975,94.528,94.435,6.25]
[1643478574092,1.43897975,94.528,94.436,23.0555]
[1643478574294,1.43897975,94.535,94.441,105.8]
[1643478574489,1.43897975,94.562,94.446,5.97951307]
[1643478574691,1.43897975,94.567,94.441,0.25]
[1643478574890,41.27099325,94.561,94.443,110.39754629]
[1643478575190,15.879,94.56,94.444,19.93160077]